Cogmind - Beta 17.1 @@@ ROGUE MODE // 2026.09.21 @ 19:52:21 Player: MrFartsburg Result: Destroyed by H-61 Shepherd via exploding Fusion Modulator Performance ------------- Evolutions (2) 1000 Regions Visited (4) 800 Robots Destroyed (35) 175 Value Destroyed (1189) 1189 Prototype IDs (4) 80 Alien Tech Used (0) 0 Bonus (11) 11 TOTAL SCORE: 3255 Bonus ------- High Alert Combat Kills 11 Cogmind --------- Core Integrity 0/550 Matter 300/300 Energy 300/300 System Corruption 3% Temperature Cool (12) Movement Walking (175) Ox1 Location -8/Materials Parts ------- > --- POWER (2) -------- Enhanced Nuclear Core > --- PROPULSION (3) --- Aluminum Leg > --- UTILITY (4) ------ Advanced Visual Processing Unit Improved Targeting Computer Core Analyzer > --- WEAPON (2) ------- Particle Gun > --- INVENTORY (5) ---- Armored Treads Flight Unit Improved Flight Unit Peak State ------------ > --- POWER ------------ Deuterium Engine Enhanced Nuclear Core > --- PROPULSION ------- Aluminum Leg Carbon-fiber Leg Improved Flight Unit > --- UTILITY ---------- Advanced Visual Processing Unit Terrain Scanner Improved Targeting Computer Core Analyzer > --- WEAPON ----------- Pulse Rifle Heavy Laser > --- INVENTORY -------- Armored Treads Flight Unit Flight Unit High-powered Shotgun Advanced EMP Blaster [Rating: 33] Favorites ----------- Power Light Ion Engine Engine Light Ion Engine Power Core Enhanced Nuclear Core Propulsion Aluminum Leg Treads Light Treads Leg Aluminum Leg Flight Unit Flight Unit Utility Terrain Scanner Device Terrain Scanner Processor Core Analyzer Weapon Pulse Rifle Energy Gun Pulse Rifle Energy Cannon Heavy Particle Cannon Ballistic Gun High-powered Shotgun Launcher Advanced EMP Blaster Build | -11 -10 -9 -9 -8 ------- Run | Yrd Mat Mat Min Mat Slots Evolved 4 | . . 2 . 2 Power 1 | . . . . 1 Propulsion 1 | . . 1 . . Utility 2 | . . 1 . 1 Weapon . | . . . . . Parts Attached 37 | 4 3 4 4 22 Power 7 | 1 . . 1 5 Engine 4 | 1 . . 1 2 Core 3 | . . . . 3 Reactor . | . . . . . Propulsion 14 | 1 1 3 3 6 Treads 1 | 1 . . . . Leg 6 | . 1 . . 5 Wheel . | . . . . . Hover . | . . . . . Flight 7 | . . 3 3 1 Utility 7 | . 2 1 . 4 Device 4 | . 2 1 . 1 Storage . | . . . . . Processor 3 | . . . . 3 Hackware . | . . . . . Protection . | . . . . . Artifact . | . . . . . Weapon 9 | 2 . . . 7 Energy Gun 3 | . . . . 3 Energy Cannon 1 | . . . . 1 Ballistic Gun 3 | 2 . . . 1 Ballistic Cannon . | . . . . . Launcher 2 | . . . . 2 Special Weapon . | . . . . . Impact Weapon . | . . . . . Slashing Weapon . | . . . . . Piercing Weapon . | . . . . . Special Melee Weapon . | . . . . . Unidentified Prototypes 4 | . . . . 4 Parts Lost 18 | . . . 1 17 Power 4 | . . . 1 3 Propulsion 5 | . . . . 5 Utility 3 | . . . . 3 Weapon 6 | . . . . 6 Highest Loss Streak 11 | . . . 1 11 To Critical Strikes . | . . . . . Average Backups 3 | 1 2 2 4 4 Power . | . 1 1 . . Propulsion 1 | . . . 2 2 Utility . | . . . . . Weapon 1 | . 1 1 1 1 Tool/Special . | . . . . . Unused Backups 3 | . . . . 3 Power 1 | . . . . 1 Propulsion 1 | . . . . 1 Utility . | . . . . . Weapon 1 | . . . . 1 Tool/Special . | . . . . . Average Slot Usage (%) 91 | . 75 86 100 94 Engine 10 | . 14 11 11 10 Core 5 | . . . . 7 Treads 2 | . 14 8 . . Leg 14 | . 6 8 . 17 Flight 7 | . . 9 33 6 Device 17 | . 11 28 33 16 Processor 13 | . . . . 18 Energy Gun 5 | . . . . 7 Ballistic Gun 10 | . 28 22 22 6 Launcher 2 | . . . . 3 Peak Build Rating 33 | 4 7 9 9 33 Average Rating 20 | 3 5 7 8 25 On Entrance 5 | . 4 7 9 9 Avg Prop Armor Cover (%) 9 | . 11 11 . 2 Naked Turns . | . . . . . Heaviest Build 27 | 6 8 9 9 27 Greatest Support 35 | 20 20 12 12 35 Greatest Overweight (x) 8 | . . 2 . 8 Average Overweight (x) . | . . . . . Largest Inventory Capacity 5 | 5 5 5 5 5 Average Capacity 5 | 5 5 5 5 5 Most Carried 5 | 2 2 4 5 5 Average Carried 4 | 1 2 2 4 4 Final Capacity 5 | 5 5 5 5 5 Final Carried 5 | 2 2 4 5 3 Class Distribution -------------------- 81% | Mutant 18% | Scavenger-Mutant Dominant Class ---------------- Mutant | -10/Materials Mutant | -9/Materials Scavenger-Mutant | -9/Mines Mutant | -8/Materials Resources | -11 -10 -9 -9 -8 ----------- Run | Yrd Mat Mat Min Mat Matter Collected 1118 | 240 48 . 102 728 Remotely . | . . . . . Salvage Created 1377 | . 48 . 74 1255 Parts 76 | . 2 . 11 63 Haulers Intercepted . | . . . . . Recyclers Shooed . | . . . . . Parts Field Recycled . | . . . . . Retrieved Matter . | . . . . . Parts Self-Destructed . | . . . . . Prevented . | . . . . . Parts Restored . | . . . . . Kills | -11 -10 -9 -9 -8 ------- Run | Yrd Mat Mat Min Mat Combat Hostiles Destroyed 27 | . 1 . 5 21 Guns 10 | . 1 . 5 4 Cannons 1 | . . . . 1 AOE 15 | . . . . 15 Classes Destroyed 10 | . 1 . 1 8 Worker 1 | . . . . 1 Builder 2 | . . . . 2 Tunneler 2 | . . . . 2 Operator 1 | . . . . 1 Watcher 2 | . . . . 2 Swarmer 5 | . . . 5 . Grunt 16 | . 1 . . 15 Brawler 1 | . . . . 1 Duelist 1 | . . . . 1 Sentry 4 | . . . . 4 Best Kill Streak 12 | . 1 . 5 12 Combat Bots Only 9 | . 1 . 5 9 Max Kills in Single Turn 3 | . 1 . 1 3 Gunslinging . | . . . . . Exploded 2 | . . . . 2 Melee . | . . . . . Uniques/NPCs Destroyed . | . . . . . Combat | -11 -10 -9 -9 -8 -------- Run | Yrd Mat Mat Min Mat Hostile Shots Fired 137 | . 10 5 22 100 Missed 49 | . 4 3 6 36 Hits 88 | . 6 2 16 64 Melee 3 | . . . . 3 Projectile 85 | . 6 2 16 61 AOE 1 | . . . . 1 Critical Strikes 3 | . . . . 3 Damage Taken 2271 | . 66 21 129 2055 Core 635 | . 24 . 15 596 Absorbed by Shields . | . . . . . Regen/Repaired (Parts) 97 | . . . . 97 Core Remaining (%) 95 | 100 90 . 96 . Volleys Fired 64 | . 10 3 11 40 Largest 2 | . 2 2 2 2 Hottest 99 | . 40 40 40 99 Shots Fired 111 | . 20 6 22 63 Gun 72 | . 20 6 22 24 Cannon 4 | . . . . 4 Launcher 35 | . . . . 35 Special . | . . . . . Kinetic 61 | . 20 6 22 13 Thermal 15 | . . . . 15 Explosive 6 | . . . . 6 Electromagnetic 29 | . . . . 29 Robot Hit Streak 8 | . 7 1 2 8 Robot Miss Streak 5 | . 2 2 5 4 Penetration Max . | . . . . . Secondary Targets 2 | . . . 2 . Max Gunslinging Chain 1 | . . . 1 . Shots Hit Robots 71 | . 15 3 9 44 Core Hits 61 | . 2 1 6 52 Critical Kills . | . . . . . Critical Parts Destroyed . | . . . . . Critical Strikes 1 | . . . . 1 Burn 1 | . . . . 1 Melee Attacks . | . . . . . Impact . | . . . . . Slashing . | . . . . . Piercing . | . . . . . Sneak Attacks . | . . . . . Combat Hostiles . | . . . . . Follow-up Attacks . | . . . . . Damage Inflicted 2359 | . 156 23 85 2095 Guns 700 | . 156 23 85 436 Cannons 75 | . . . . 75 Explosions 1544 | . . . . 1544 Melee . | . . . . . Ramming 40 | . . . . 40 Kinetic 524 | . 156 23 85 260 Thermal 251 | . . . . 251 Explosive 193 | . . . . 193 Electromagnetic 1351 | . . . . 1351 Impact . | . . . . . Slashing . | . . . . . Piercing . | . . . . . Highest Corruption 3 | . . . . 3 Average Corruption 2 | . . . . 2 Corruption Purged . | . . . . . Corruption Blocked . | . . . . . Effects 12 | . . . . 12 Message Errors 3 | . . . . 3 Matter Fused 4 | . . . . 4 Energy Discharges 1 | . . . . 1 Parts Rejected 2 | . . . . 2 Data Loss (minor) 1 | . . . . 1 Data Loss (major) 1 | . . . . 1 Overload Shots . | . . . . . Overflow Damage 34 | . . . . 34 Projectiles . | . . . . . Explosions 34 | . . . . 34 Melee . | . . . . . Knockbacks . | . . . . . Impact . | . . . . . Kinetic . | . . . . . Secondary . | . . . . . Self-Inflicted Damage 269 | . . . . 269 Shots 13 | . . . . 13 Rammed . | . . . . . Targets Rammed 6 | . . . . 6 Kicked 6 | . . . . 6 Crushed . | . . . . . Highest Temperature 195 | . 6 . . 195 Average Temperature 56 | . 6 . . 59 Received Heat Transfer 375 | . 36 12 . 327 Siege Activations . | . . . . . Martial Activations . | . . . . . Shielding Activations . | . . . . . Robots Disrupted . | . . . . . Combat Hostiles . | . . . . . Robots Corrupted 1 | . . . . 1 Combat Hostiles 1 | . . . . 1 Parts Fried 2 | . . . . 2 Impact Corruptions . | . . . . . Robots Melted . | . . . . . Combat Hostiles . | . . . . . Parts Melted . | . . . . . Heat Transferred 555 | . . . . 555 Parts Sabotaged . | . . . . . Parts Stolen . | . . . . . Parts Stripped . | . . . . . Power Chain Reactions 9 | . . . . 9 Alert | -11 -10 -9 -9 -8 ------- Run | Yrd Mat Mat Min Mat Maximum Alert Level 2 | . . . . 2 Low Security (%) 43 | 100 100 100 100 23 Level 1 51 | . . . . 70 Level 2 4 | . . . . 5 Level 3 . | . . . . . Level 4 . | . . . . . Level 5 . | . . . . . High Security . | . . . . . Max Security . | . . . . . Peak Influence 424 | . 30 2 140 424 Initial 52 | . . . . 52 Average 197 | . 4 . 106 262 Influence Increases 990 | . 53 2 185 750 Destroy 0b10 Robot/C 540 | . 20 . 100 420 Destroy 0b10 Robot/NC 40 | . . . . 40 Destroy Leader 114 | . 10 . 10 94 Successful Hack 25 | . 23 2 . . Disable Machine 60 | . . . . 60 Destroy Structure 61 | . . . . 61 Partial Spotted 30 | . . . 30 . Lose Combat Pursuer 120 | . . . 45 75 Influence Decreases 818 | . 53 2 50 713 Entered New Map 83 | . . . . 83 Time Decay 555 | . 53 2 40 460 Lost Part 180 | . . . 10 170 Squads Dispatched 7 | . 1 3 . 3 Investigation 4 | . 1 2 . 1 Extermination . | . . . . . Reinforcement 3 | . . 1 . 2 Assault . | . . . . . Garrison . | . . . . . Intercept . | . . . . . Searches Triggered . | . . . . . Construction Impeded 1 | . . . . 1 Haulers Reinforced . | . . . . . Active Scanning Responses . | . . . . . Cargo Convoy Interrupts . | . . . . . Stealth | -11 -10 -9 -9 -8 --------- Run | Yrd Mat Mat Min Mat Distress Signals 2 | . . . . 2 Communications Jammed . | . . . . . Distress Signals . | . . . . . Times Spotted 50 | . 3 8 6 33 Peak Tracking Total 8 | . 1 8 4 5 Tactical Retreats 5 | . . . 1 4 Traps | -11 -10 -9 -9 -8 ------- Run | Yrd Mat Mat Min Mat Traps Triggered 3 | . 1 . . 2 Indirectly 1 | . . . . 1 Trap Hack Attempts . | . . . . . Triggered . | . . . . . Disarmed . | . . . . . Reprogrammed . | . . . . . Reused . | . . . . . Traps Extracted . | . . . . . Installed . | . . . . . Triggered . | . . . . . Machines | -11 -10 -9 -9 -8 ---------- Run | Yrd Mat Mat Min Mat Machines Disabled 4 | . . . . 4 Max in Single Turn 1 | . . . . 1 Machines Repaired . | . . . . . Machines Dismantled . | . . . . . Machines Sabotaged . | . . . . . Overloaded Fab Kills . | . . . . . Hacking | -11 -10 -9 -9 -8 --------- Run | Yrd Mat Mat Min Mat Machines Accessed 7 | . 2 3 . 2 Terminals 5 | . 2 2 . 1 Fabricators . | . . . . . Repair Stations 1 | . . . . 1 Recycling Units . | . . . . . Scanalyzers 1 | . . 1 . . Garrison Access . | . . . . . Total Hacks 33 | . 8 8 . 17 Successful 19 | . 5 3 . 11 Failed 14 | . 3 5 . 6 Catastrophic 1 | . . 1 . . Database Lockouts . | . . . . . Manual . | . . . . . Terminals 21 | . 8 5 . 8 Fabricators . | . . . . . Repair Stations 9 | . . . . 9 Recycling Units . | . . . . . Scanalyzers 3 | . . 3 . . Garrison Access . | . . . . . Terminal Hacks 11 | . 5 1 . 5 Record 6 | . . 1 . 5 Alert Level 1 | . 1 . . . Dispatch Records 1 | . 1 . . . Hauler Manifests 1 | . 1 . . . Registered Prototypes 1 | . 1 . . . Zone Layout 1 | . 1 . . . Fabricator Hacks . | . . . . . Repair Station Hacks 6 | . . . . 6 Scan Component 4 | . . . . 4 Repair 2 | . . . . 2 Recycling Unit Hacks . | . . . . . Scanalyzer 2 | . . 2 . . Retrieve Study 2 | . . 2 . . Garrison Access Hacks . | . . . . . Unauthorized Hacks . | . . . . . Terminals . | . . . . . Fabricators . | . . . . . Repair Stations . | . . . . . Recycling Units . | . . . . . Scanalyzers . | . . . . . Garrison Access . | . . . . . Data Cores Recovered . | . . . . . Used . | . . . . . Hacking Detections 4 | . . 3 . 1 Full Trace Events 3 | . . 2 . 1 Feedback Events . | . . . . . Feedback Blocked . | . . . . . Robot Schematics Acquired . | . . . . . Robots Built . | . . . . . Authchips . | . . . . . Time . | . . . . . Total Robot Build Rating . | . . . . . Part Schematics Acquired . | . . . . . Parts Built . | . . . . . Authchips . | . . . . . Time . | . . . . . Total Part Build Rating . | . . . . . Part Studies Acquired 2 | . . 2 . . Parts Repaired 2 | . . . . 2 Time 64 | . . . . 64 Parts Recycled . | . . . . . Recycled Matter . | . . . . . Retrieved Matter . | . . . . . Retrieved Components . | . . . . . Parts Scanalyzed . | . . . . . Part Schematics Acquired . | . . . . . Parts Damaged . | . . . . . Bothacking | -11 -10 -9 -9 -8 ------------ Run | Yrd Mat Mat Min Mat Used RIF Installer . | . . . . . Robots Hacked . | . . . . . Non-combat . | . . . . . Combat . | . . . . . Robot Hacks Applied . | . . . . . Relay Couplers Released . | . . . . . Fabnet Peak Effective % . | . . . . . Robots Rewired . | . . . . . Allies Hacked . | . . . . . Hacks Repelled . | . . . . . Allies | -11 -10 -9 -9 -8 -------- Run | Yrd Mat Mat Min Mat Total Allies . | . . . . . Largest Group . | . . . . . Highest-Rated Group . | . . . . . Highest-Rated Ally . | . . . . . Total Orders . | . . . . . Ally Attacks . | . . . . . Total Damage . | . . . . . Kills . | . . . . . Allies Corrupted . | . . . . . Allies Melted . | . . . . . Intel | -11 -10 -9 -9 -8 ------- Run | Yrd Mat Mat Min Mat Active Infowar (turns) 1616 | . 86 108 86 1336 Optics 766 | . . . . 766 Terrain 1537 | . 86 108 86 1257 Seismic 478 | . . 60 86 332 Robot Analysis Total . | . . . . . Derelict Logs Recovered 2 | . . . 2 . Drone Launches . | . . . . . Drone Recoveries . | . . . . . Exploration | -11 -10 -9 -9 -8 ------------- Run | Yrd Mat Mat Min Mat Turns Passed 1829 | 59 240 108 86 1336 Spaces Moved 1363 | 36 152 130 132 913 Core 19 | 5 . . . 14 Treads 95 | 31 64 . . . Legs 810 | . 88 60 . 662 Wheels . | . . . . . Hover . | . . . . . Flight 439 | . . 70 132 237 Fastest Speed 34 | 50 120 34 34 34 Average Speed 107 | 144 136 70 34 117 Slowest Speed 450 | 160 160 200 34 450 Overloaded Moves . | . . . . . Propulsion Burnouts . | . . . . . Robots Hopped 3 | . . 1 2 . Potential Cave-ins . | . . . . . Cave-ins Triggered . | . . . . . Exploration Rate (%) 29 | 3 22 18 41 61 Regions Visited 4 Branch Regions 1 Pre-discovered Areas . | . . . . . Known Exits Taken . | . . . . . Unknown Exits Taken 4 | 1 1 1 1 . Scrap Searched 1 | . . . 1 . Spaces Dug . | . . . . . Terrain Destroyed 60 | . . . . 60 Melee . | . . . . . Projectile . | . . . . . AOE 60 | . . . . 60 Terrain Rammed . | . . . . . Walls Destroyed . | . . . . . Machines Disabled . | . . . . . Actions | -11 -10 -9 -9 -8 --------- Run | Yrd Mat Mat Min Mat Total 1590 | 41 164 138 150 1097 Wait 72 | . . 1 1 70 Move 1353 | 35 151 127 127 913 Hop 3 | . . 1 2 . Pick Up 13 | 2 . . 2 9 Fast Attach 28 | 4 3 4 . 17 Attach 7 | . . . 1 6 Detach 3 | . . 2 . 1 Swap 26 | . . . 3 23 Drop 15 | . . . 3 12 Fire 64 | . 10 3 11 40 Melee . | . . . . . Ram . | . . . . . Kick 6 | . . . . 6 Crush . | . . . . . Escape Stasis . | . . . . . Rewire . | . . . . . Trap . | . . . . . Miscellaneous . | . . . . . Route ------- -11/Scrapyard -10/Materials -9/Materials -9/Mines -8/Materials (discovered 1 exit: Fac) History --------- Turn | Location | Event 25 | -11/Scrapyard | Discovered new exit (range 15) 60 | -11/Scrapyard | Entered Materials 261 | -10/Materials | Discovered new exit (range 4) 300 | -10/Materials | Entered another Materials area 300 | -9/Materials | Evolved 2 slots: Propulsion x1, Utility x1 311 | -9/Materials | Build established: Mutant 403 | -9/Materials | Discovered new exit (range 15) 408 | -9/Materials | Entered Mines 462 | -9/Mines | YI-UF0 nonchalantly dropped a Grenade Launcher on the ground 474 | -9/Mines | Learned Materials emergency access door positions 487 | -9/Mines | Discovered new exit (range 3) 494 | -9/Mines | Entered Materials 494 | -8/Materials | Evolved 2 slots: Power x1, Utility x1 495 | -8/Materials | Identified exit to Factory 752 | -8/Materials | Build established: Scavenger-Mutant 872 | -8/Materials | Destroyed 9 combat bots 1102 | -8/Materials | Build established: Mutant 1574 | -8/Materials | Repaired Deuterium Engine 1601 | -8/Materials | Repaired Aluminum Leg+ 1770 | -8/Materials | Core integrity fell below 50% 1804 | -8/Materials | Core integrity fell below 20% 1830 | -8/Materials | Destroyed by H-61 Shepherd via exploding Fusion Modulator Last Messages --------------- reinforcements to area. Knocked back. Acquired 14 matter. Acquired Lgt. Nuclear Core. Acquired Aluminum Leg+. U-05 Engineer builds a Wall. Acquired Aluminum Leg+. Penetrated by Slug. Knocked back. Acquired 30 matter. U-05 Engineer builds a Wall. Acquired Particle Gun. K-01 Serf collects debris. Hvy. Laser destroyed. Aluminum Leg+ destroyed. K-01 Serf collects debris. Slug penetrates Wall. Lgt. Nuclear Core destroyed. Knocked back. Fusion Modulator explodes. Map ----- +----------------------------------------------------+ | ?#??#???????????#??##+####### ######+######## | | ####????????#??##??# ## ### #?# ## | | #???????##! ? ??# """""## ### #?# ## | | #???????#! ??# """""## ###*#?# """"" ## | | /#???????#! # """""## #?# #?# """"" = ## | | #?#?#???#! + """""## #?# #?# """"" ## | | #???????#! # """""##+###+### *## | | #????#??##! ??# """""# ############? | | #??#?????###????# """""# #?????????? ? | | #?????????????? # # [#???????????# | | #??#??????????? #####+#### #??? ???????# | | ####????????????????# # #?????"?????? | | ????????????????????# """"" # #????????"??? | | ????????????????????# """"" # #???????????? | | ??????#?????????????# """"" # #??? ?????? ? | | ??????#???????## ???# # % ! #?? ????????? | | #?##?#????????# ###+########/###########/#???? | | #####?????????# [ | | #?????????# T | | [ #?????????# | | #????#????# ########### ##########+####? | | """ ###???????####### #?# #??????????????? | | """ #???????????????# #?# #??????????????? | | """ #????#?#????????# #?# #??????????????? | | ##???????#??????# #?# #??????????????? | | #??????????????# @% #?# #??????????????? | | ######??????????????# #?# ##?????????????? | | ######################+;#### #?????????????? | | % % % % #?????????????? | | % %% %% H #?????????????? | | % %% % % %! ??????? | | = ###+################# #### #######???????? | | ### #?? ??[ ??#t #???######?????????????? | | ??# """ #??? ???# m #??????????????????????? | | ??# % """ #?? ????+ #??????????????????????? | | #?# """ ## ?????# #??????????????????????? | | ??# ## ?????# #??????????????????????? | | ??########### ?????# #??????????????????????? | | ????????????#! ???????## ##??????????????????????? | | #????#??#???# ?????????# #???????????????????????? | | ????#???????##?????????# #???????????????????????? | | ???????????????????????# #???????????????????????? | | ?????????????#?????????? #???????????????????????? | | ????#??????????????????? #???????????????????????? | | ???????????????????????? #???????????????????????? | | ???????????????????????? ????????????????????????? | | ???????????????????????? ????????????????????????? | | ???????????????????????? ????????????????????????? | | ?????????????????????????????????????????????????? | | ?#???????????????????????????????????????????????? | +----------------------------------------------------+ Best States ------------- Heat Dissipation 41 Energy Generation 26 Energy Capacity 475 Matter Stores 300 Matter Capacity 300 Sight Range 20 Terrain Scan Range 14 Terrain Scan Density 10 Evasion (%) 63 Targeting Accuracy 6 Core Analysis 6 Recoil Reduction 4 Item Schematics ----------------- None Robot Schematics ------------------ None Fabricated ------------ Nothing Repaired ---------- Deuterium Engine | 73% | -8/Materials Aluminum Leg | 14% | -8/Materials Studied --------- Aluminum Leg | -9/Materials | Hacked Lgt. Ion Engine | -9/Materials | Hacked Alien Tech Used ----------------- None Achievements -------------- None Challenges ------------ None Game ------ Seed BeamHeatDerivative Manual? 0 Play Time 00:34:13 Cumulative 40.8 hours Start 2026.09.21 @ 19:18:34 End 2026.09.21 @ 19:52:21 Sessions 1 Manual Loads 0 Difficulty Rogue Special Mode None Game No. 79 Rogue 79 Adventurer 0 Explorer 0 Win Type - Total 0 Types 0/0/0/0/0/0/0/0/0/0 Lore% 13 Gallery% 25 Achievement% 17 Wizard Run 0 Options --------- Layout 1 ASCII 0 Keyboard 0 Movement Numpad Keybinds 0 Fullscreen 1 Font 32/SmallcapsGlow Map View 50x35 Zoom Use 0% Tactical HUD 0 Map Filters NONE Filters NONE Steam 1 RUN: eebebeb8-7806-4140-8334-52f743c0516c